bitfinex/quotes_BTCUSD_20250902
["timestamp","ask_amount","ask_price","bid_price","bid_amount"]
[1756800530868,0.20464621,110390.0,110380.0,0.27863729]
[1756800532466,0.67571942,110400.0,110390.0,0.18117583]
[1756800532673,0.69881062,110400.0,110390.0,0.00206]
[1756800532875,0.69881062,110400.0,110390.0,0.00517]
[1756800533490,1.05405133,110400.0,110390.0,0.00517]
[1756800534073,0.18117583,110390.0,110380.0,0.09538505]
[1756800534350,0.53641654,110390.0,110380.0,0.09744505]
[1756800534528,0.53855654,110390.0,110380.0,0.09744505]
[1756800535107,0.53641654,110390.0,110380.0,0.09744505]
[1756800535885,0.53641654,110390.0,110380.0,0.28090219]
[1756800536092,0.18117583,110390.0,110380.0,0.27863729]
[1756800540244,0.69877062,110400.0,110390.0,0.18117583]
[1756800540457,0.20425062,110400.0,110390.0,0.28052651]
[1756800540677,0.20425062,110400.0,110390.0,0.27826182]
[1756800541477,0.20525062,110400.0,110390.0,0.27826182]
[1756800542326,0.20625062,110400.0,110390.0,0.27826182]
[1756800544917,0.56363133,110400.0,110390.0,0.09397599]
[1756800545120,0.56363133,110400.0,110390.0,0.09191599]
[1756800545330,0.56363133,110400.0,110390.0,0.09397599]
[1756800545913,0.56363133,110400.0,110390.0,0.09191599]
[1756800546116,0.18117583,110390.0,110380.0,0.00035906]
[1756800546337,0.69089654,110390.0,110380.0,0.09227505]
[1756800546557,0.69286654,110390.0,110380.0,0.09227505]
[1756800546973,0.34082583,110390.0,110380.0,0.09227505]
[1756800547187,0.69606654,110390.0,110380.0,0.09227505]
[1756800547608,0.69286654,110390.0,110380.0,0.09227505]
[1756800548767,0.69606654,110390.0,110380.0,0.09227505]
[1756800549178,0.69286654,110390.0,110380.0,0.09227505]
[1756800549415,0.69286654,110390.0,110380.0,0.09429505]
[1756800549622,0.33762583,110390.0,110380.0,0.09227505]
[1756800549824,0.69606654,110390.0,110380.0,0.00035906]
[1756800550634,0.33762583,110390.0,110380.0,0.00237906]
[1756800550820,0.69286654,110390.0,110380.0,0.00237906]
[1756800551023,0.53838654,110390.0,110380.0,0.1835713]
[1756800551294,0.69286654,110390.0,110380.0,0.00237906]
[1756800553008,0.69286654,110390.0,110380.0,0.00035906]
[1756800553231,0.69286654,110390.0,110380.0,0.00237906]
[1756800553864,0.69282654,110390.0,110380.0,0.00237906]
[1756800554320,0.69282654,110390.0,110380.0,0.00035906]
[1756800554767,0.69282654,110390.0,110380.0,0.1865313]
[1756800554954,0.69282654,110390.0,110380.0,0.00533906]
[1756800555110,0.69282654,110390.0,110380.0,0.00237906]
[1756800555326,0.69282654,110390.0,110380.0,0.00035906]
[1756800555573,0.33758583,110390.0,110380.0,0.1815513]
[1756800555779,0.69085654,110390.0,110380.0,0.1865313]
[1756800556208,0.53641654,110390.0,110380.0,0.1865313]
[1756800556507,0.18117583,110390.0,110380.0,0.1865313]
[1756800557932,0.74116733,110400.0,110380.0,0.27844729]
[1756800558159,0.18117583,110390.0,110380.0,0.27844729]
[1756800558623,0.18117583,110390.0,110380.0,0.09725505]
[1756800558847,0.53838654,110390.0,110380.0,0.09227505]
[1756800559292,0.53838654,110390.0,110380.0,0.09429505]
[1756800559548,0.53838654,110390.0,110380.0,0.09725505]
[1756800560766,0.53838654,110390.0,110380.0,0.09227505]
[1756800562007,0.18314583,110390.0,110380.0,0.09227505]
[1756800562157,0.53838654,110390.0,110380.0,0.09429505]
[1756800563552,0.54158654,110390.0,110380.0,0.09227505]
[1756800564091,0.54158654,110390.0,110380.0,0.00035906]
[1756800565803,0.6084689,110390.0,110380.0,0.00035906]
[1756800566238,0.9484689,110390.0,110380.0,0.00035906]
[1756800566426,0.96804642,110390.0,110380.0,0.00035906]
[1756800567003,0.99528642,110390.0,110380.0,0.00035906]
[1756800572220,1.14968642,110390.0,110380.0,0.00035906]
[1756800573189,0.18122374,110370.0,110350.0,0.30502941]
[1756800573372,0.53646445,110370.0,110360.0,0.09393599]
[1756800573520,0.18122374,110370.0,110360.0,0.27742638]
[1756800573875,0.18122374,110370.0,110360.0,0.30660107]
[1756800574421,0.18122374,110370.0,110360.0,0.30974257]
[1756800574893,0.54550748,110380.0,110370.0,0.18120866]
[1756800575099,0.18120716,110380.0,110370.0,0.27740975]
[1756800575301,0.18120716,110380.0,110370.0,0.27810465]
[1756800576132,0.18120716,110380.0,110370.0,0.09689599]
[1756800576338,0.18120716,110380.0,110370.0,0.09916109]
[1756800576880,0.18120716,110380.0,110370.0,0.10016109]
[1756800577351,0.18120716,110380.0,110370.0,0.28236975]
[1756800577547,0.18120716,110380.0,110370.0,0.09889599]
[1756800577715,0.18120716,110380.0,110370.0,0.10116109]
[1756800577914,0.18120716,110380.0,110370.0,0.09889599]
[1756800578722,0.18120716,110380.0,110370.0,0.25325599]
[1756800578723,0.53644787,110380.0,110370.0,0.25325599]
[1756800579130,0.53644787,110380.0,110370.0,0.09889599]
[1756800579677,0.53644787,110380.0,110370.0,0.10116109]
[1756800581327,0.53857787,110380.0,110370.0,0.10116109]
[1756800581534,0.54182787,110380.0,110370.0,0.09391599]
[1756800581736,0.27850315,110380.0,110370.0,0.002]
[1756800581939,0.63374386,110380.0,110370.0,0.002]
[1756800582291,0.54182787,110380.0,110370.0,0.002]
[1756800582734,0.53644787,110380.0,110370.0,0.007]
[1756800584689,0.53857787,110380.0,110370.0,0.00404]
[1756800585557,0.89382248,110380.0,110370.0,0.00404]
[1756800585787,0.89707248,110380.0,110370.0,0.002]
[1756800587494,0.18658716,110380.0,110370.0,0.00404]
[1756800587897,0.89707248,110380.0,110370.0,0.00404]
[1756800588120,0.54182982,110380.0,110370.0,0.00404]
[1756800589612,0.54182982,110380.0,110370.0,0.002]
[1756800589948,0.89707248,110380.0,110370.0,0.002]
[1756800591936,0.89707248,110380.0,110370.0,0.00404]
[1756800592488,0.54182982,110380.0,110370.0,0.00404]
[1756800592685,0.18658716,110380.0,110370.0,0.00404]
[1756800592914,0.18120716,110380.0,110370.0,0.63763241]
[1756800593049,0.18120716,110380.0,110370.0,0.63536731]
[1756800593710,0.18120716,110380.0,110370.0,0.28012465]
[1756800595715,0.18120866,110370.0,110340.0,0.0004]
[1756800595929,1.58696948,110350.0,110340.0,0.000541]
[1756800596142,1.77149335,110350.0,110340.0,0.000541]
[1756800596374,1.8187829,110350.0,110340.0,0.000541]
[1756800596582,1.46079753,110350.0,110340.0,0.000541]
[1756800596870,1.50716751,110350.0,110340.0,0.000541]
[1756800597069,1.86241017,110350.0,110340.0,0.001541]
[1756800597189,1.86240984,110350.0,110340.0,0.001541]
[1756800597405,1.85604823,110350.0,110340.0,0.001541]
[1756800597607,1.85604823,110350.0,110340.0,0.000541]
[1756800598474,1.85804823,110350.0,110340.0,0.000541]
[1756800598892,0.79332025,110350.0,110340.0,0.000541]
[1756800599228,1.98012822,110350.0,110340.0,0.000541]
[1756800603495,1.95309067,110350.0,110340.0,0.000541]
[1756800604934,1.79881067,110350.0,110340.0,0.000541]
[1756800605151,1.95313067,110350.0,110340.0,0.000541]
[1756800605693,1.93354626,110350.0,110340.0,0.000541]
[1756800605925,1.9529176,110350.0,110340.0,0.000541]
[1756800609442,1.95291043,110350.0,110340.0,0.000541]
[1756800611919,1.95290198,110350.0,110340.0,0.000541]
[1756800612526,1.59765932,110350.0,110340.0,0.000541]
[1756800614919,1.25765932,110350.0,110340.0,0.000541]
[1756800615761,1.61290198,110350.0,110340.0,0.000541]
[1756800616443,1.59600752,110350.0,110340.0,0.000541]
[1756800616644,1.61290829,110350.0,110340.0,0.000541]
[1756800616849,1.95290829,110350.0,110340.0,0.000541]
[1756800618371,1.97723724,110350.0,110340.0,0.000541]
[1756800619511,1.98357939,110350.0,110340.0,0.000541]
[1756800622290,1.99204492,110350.0,110340.0,0.000541]
[1756800622501,1.99214145,110350.0,110340.0,0.000541]
[1756800623529,1.99215377,110350.0,110340.0,0.000541]
[1756800624305,1.84598542,110350.0,110340.0,0.000541]
[1756800624509,2.00026542,110350.0,110340.0,0.000541]
[1756800624838,2.01653254,110350.0,110340.0,0.000541]
[1756800625421,2.0328475,110350.0,110340.0,0.000541]
[1756800626472,1.96773119,110350.0,110340.0,0.000541]
[1756800627036,1.94236489,110350.0,110340.0,0.000541]
[1756800627244,1.96788836,110350.0,110340.0,0.000541]
[1756800627660,1.96788818,110350.0,110340.0,0.000541]
[1756800627883,1.96788813,110350.0,110340.0,0.000541]
[1756800630784,1.96788854,110350.0,110340.0,0.000541]
[1756800631210,1.95088679,110350.0,110340.0,0.000541]
[1756800631420,2.01685322,110350.0,110340.0,0.000541]
[1756800631626,1.86257322,110350.0,110340.0,0.000541]
[1756800631804,2.01685322,110350.0,110340.0,0.000541]
[1756800637674,1.9849751,110350.0,110340.0,0.000541]
[1756800637880,2.0168405,110350.0,110340.0,0.000541]
[1756800638891,1.99984562,110350.0,110340.0,0.000541]
[1756800643272,1.95983758,110350.0,110340.0,0.000541]
[1756800645093,1.95984127,110350.0,110340.0,0.000541]
[1756800645303,0.18125793,110340.0,110330.0,0.0004]
[1756800645510,1.65949354,110340.0,110330.0,0.0004]
[1756800645715,1.62684503,110340.0,110330.0,0.0004]
[1756800645923,1.63189503,110340.0,110330.0,0.0004]
[1756800646130,1.62552195,110340.0,110330.0,0.0004]
[1756800646333,1.65817831,110340.0,110330.0,0.0004]
[1756800646559,1.64967718,110340.0,110330.0,0.0004]
[1756800647443,1.60709069,110340.0,110330.0,0.0004]
[1756800647645,1.6007125,110340.0,110330.0,0.0004]
[1756800648027,1.6043465,110340.0,110330.0,0.0004]
[1756800648276,1.69626249,110340.0,110330.0,0.0004]
[1756800648480,1.00104251,110340.0,110330.0,0.0004]
[1756800648684,1.71357081,110340.0,110330.0,0.0004]
[1756800649825,1.7284532,110340.0,110330.0,0.0004]
[1756800650346,1.76106665,110340.0,110330.0,0.0004]
[1756800650565,1.75256243,110340.0,110330.0,0.0004]
[1756800650752,1.59190426,110340.0,110330.0,0.0004]
[1756800650955,1.74614426,110340.0,110330.0,0.0004]
[1756800651678,1.75464884,110340.0,110330.0,0.0004]
[1756800651884,1.76102727,110340.0,110330.0,0.0004]
[1756800652258,1.71206259,110340.0,110330.0,0.0004]
[1756800652459,1.70568416,110340.0,110330.0,0.0004]
[1756800653085,1.69717958,110340.0,110330.0,0.0004]
[1756800653741,1.76689958,110340.0,110330.0,0.0004]
[1756800655771,1.78178254,110340.0,110330.0,0.0004]
[1756800657143,0.18127435,110330.0,110320.0,0.0004]
[1756800657333,1.66102373,110330.0,110320.0,0.0004]
[1756800657511,1.69927374,110330.0,110320.0,0.0004]
[1756800657713,1.6928802,110330.0,110320.0,0.0004]
[1756800657920,1.70290726,110330.0,110320.0,0.0004]
[1756800658309,1.70290726,110330.0,110320.0,0.0014]
[1756800658508,1.6965402,110330.0,110320.0,0.0004]
[1756800658721,1.70490523,110330.0,110320.0,0.0004]
[1756800658940,1.70490523,110330.0,110320.0,0.0014]
[1756800659336,1.69641581,110330.0,110320.0,0.0004]
[1756800659589,1.69841581,110330.0,110320.0,0.0004]
[1756800661677,1.66709796,110330.0,110320.0,0.0004]
[1756800661851,1.69841581,110330.0,110320.0,0.0004]
[1756800664386,1.76044614,110330.0,110320.0,0.0004]
[1756800664590,1.73600391,110330.0,110320.0,0.0004]
[1756800665321,1.72752585,110330.0,110320.0,0.0004]
[1756800665898,0.1813401,110290.0,110280.0,0.00252695]
[1756800666103,0.1813401,110290.0,110280.0,0.12364599]
[1756800666104,0.69134425,110290.0,110280.0,0.12364599]
[1756800666306,0.69134425,110290.0,110280.0,0.12561599]
[1756800667364,0.69134425,110290.0,110280.0,0.12908611]
[1756800667565,0.70986422,110290.0,110280.0,0.12908611]
[1756800667763,0.38136107,110290.0,110280.0,0.13308611]
[1756800667970,0.73712522,110290.0,110280.0,0.13588611]
[1756800668616,0.73712522,110290.0,110280.0,0.13288611]
[1756800668797,0.73712522,110290.0,110280.0,0.13488611]
[1756800668940,0.7529303,110290.0,110280.0,0.13088611]
[1756800669351,0.7529303,110290.0,110280.0,0.13288611]
[1756800670577,0.5986903,110290.0,110280.0,0.13288611]
[1756800670799,0.7529303,110290.0,110280.0,0.13288611]
[1756800672542,0.73712522,110290.0,110280.0,0.13288611]
[1756800674274,0.73712522,110290.0,110280.0,0.13008611]
[1756800674676,0.73712522,110290.0,110280.0,0.13288611]
[1756800675245,0.22712107,110290.0,110280.0,0.13515306]
[1756800675460,0.22712107,110290.0,110280.0,0.67227375]
[1756800675461,0.04578097,110290.0,110280.0,0.67227375]
[1756800675682,0.22712107,110290.0,110280.0,0.31424265]
[1756800680297,0.19037258,110310.0,110290.0,0.18132829]
[1756800680507,0.35504115,110310.0,110300.0,0.28027619]
[1756800680713,0.20084115,110310.0,110300.0,0.27800965]
[1756800680935,0.72478693,110320.0,110310.0,0.18130722]
[1756800680936,0.1904032,110320.0,110310.0,0.18130722]
[1756800681136,0.36413956,110320.0,110310.0,0.18607722]
[1756800681358,0.38848618,110320.0,110310.0,0.18607722]
[1756800681569,0.72848618,110320.0,110310.0,0.18607722]
[1756800682339,0.57428618,110320.0,110310.0,0.18607722]
[1756800683385,0.57428618,110320.0,110310.0,0.18707722]
[1756800683606,0.56522165,110320.0,110310.0,0.34127722]
[1756800683770,0.01662798,110320.0,110310.0,0.43319321]
[1756800683972,0.37179106,110330.0,110310.0,0.43319321]
[1756800684170,0.72755521,110330.0,110310.0,0.43319321]
[1756800684377,0.18129079,110320.0,110310.0,0.43319321]
[1756800684829,0.18129079,110320.0,110310.0,0.43219321]
[1756800685010,0.18129079,110320.0,110310.0,0.43119321]
[1756800685674,0.18229079,110320.0,110310.0,0.43119321]
[1756800685880,0.001,110320.0,110310.0,0.43119321]
[1756800686322,0.18229079,110320.0,110310.0,0.43119321]
[1756800687119,0.001,110320.0,110310.0,0.43119321]
[1756800687550,0.01755157,110320.0,110310.0,0.43119321]
[1756800687879,0.001,110320.0,110310.0,0.43119321]
[1756800689881,0.01731594,110320.0,110310.0,0.43119321]
[1756800690092,0.01731594,110320.0,110310.0,0.81842736]
[1756800690093,0.001,110320.0,110310.0,0.81842736]
[1756800690498,0.001,110320.0,110310.0,0.84567836]
[1756800691127,0.18127477,110330.0,110320.0,0.18129079]
[1756800691336,0.18127477,110330.0,110320.0,0.28024291]
[1756800691543,1.07068597,110340.0,110330.0,0.18127435]
[1756800691742,0.91849597,110340.0,110330.0,0.15613]
[1756800692912,0.93493232,110340.0,110330.0,0.15613]
[1756800693118,0.18127435,110330.0,110320.0,0.27320678]
[1756800693343,0.18127435,110330.0,110320.0,0.42929678]
[1756800694014,0.18127435,110330.0,110320.0,0.27517678]
[1756800694328,0.18127435,110330.0,110320.0,0.24800599]
[1756800694525,0.18127435,110330.0,110320.0,0.43029678]
[1756800694940,0.18127435,110330.0,110320.0,0.09488599]
[1756800695148,0.18127435,110330.0,110320.0,0.25000599]
[1756800695652,0.18326435,110330.0,110320.0,0.09588599]
[1756800695797,0.5422285,110330.0,110320.0,0.09391599]
[1756800696011,0.5422285,110330.0,110320.0,0.24803599]
[1756800697545,0.5422285,110330.0,110320.0,0.09391599]
[1756800697749,0.5422285,110330.0,110320.0,0.24803599]
[1756800698152,0.5422285,110330.0,110320.0,0.09391599]
[1756800698354,0.5422285,110330.0,110320.0,0.24803599]
[1756800698566,0.5422285,110330.0,110320.0,0.09391599]
[1756800698775,0.5422285,110330.0,110320.0,0.24799599]
[1756800699477,0.63414449,110330.0,110320.0,0.09391599]
[1756800699682,0.63414449,110330.0,110320.0,0.24799599]
[1756800700097,0.5422285,110330.0,110320.0,0.24799599]
[1756800700550,0.5422285,110330.0,110320.0,0.24699599]
[1756800700992,0.5422285,110330.0,110320.0,0.24599599]
[1756800701578,0.6963085,110330.0,110320.0,0.24599599]
[1756800702139,0.34054435,110330.0,110320.0,0.24599599]
[1756800702367,0.6963085,110330.0,110320.0,0.24599599]
[1756800703013,0.6963085,110330.0,110320.0,0.09191599]
[1756800703671,0.69606832,110330.0,110320.0,0.09191599]
[1756800704559,0.34030417,110330.0,110320.0,0.09191599]
[1756800704713,0.69606832,110330.0,110320.0,0.09191599]
[1756800704918,0.72738617,110330.0,110320.0,0.09191599]
[1756800705130,0.37162202,110330.0,110320.0,0.09191599]
[1756800705358,0.72738617,110330.0,110320.0,0.09191599]
[1756800707485,0.54183508,110330.0,110320.0,0.09191599]
[1756800707681,0.69587508,110330.0,110320.0,0.09191599]
[1756800711306,0.69587508,110330.0,110290.0,0.5272416]
[1756800711307,0.18130722,110310.0,110290.0,0.25104899]
[1756800711513,0.53691813,110310.0,110300.0,0.24595599]
[1756800711690,0.53691813,110310.0,110300.0,0.24808599]
[1756800712040,0.53691813,110310.0,110300.0,0.42940965]
[1756800712239,0.18130722,110310.0,110300.0,0.42940965]
[1756800712681,0.56737125,110320.0,110300.0,0.42940965]
[1756800712862,0.56737125,110320.0,110300.0,0.43240965]
[1756800713065,0.18130722,110310.0,110300.0,0.43240965]
[1756800713605,0.18130722,110310.0,110300.0,0.42940965]
[1756800714185,0.18130722,110310.0,110300.0,0.43140965]
[1756800714747,0.027255,110320.0,110310.0,0.18130722]
[1756800714950,0.54570879,110330.0,110310.0,0.63323046]
[1756800715163,0.54570879,110330.0,110320.0,0.78281769]
[1756800715164,0.20852635,110330.0,110320.0,0.78281769]
[1756800715370,0.20852635,110330.0,110320.0,0.78774769]
[1756800715577,0.027252,110330.0,110320.0,0.78774769]
[1756800715776,0.20852635,110330.0,110320.0,0.78774769]
[1756800715980,0.20852635,110330.0,110320.0,0.42933678]
[1756800715981,0.027252,110330.0,110320.0,0.42933678]
[1756800716183,0.88913173,110340.0,110320.0,0.42933678]
[1756800716359,0.93595304,110340.0,110320.0,0.42933678]
[1756800716625,0.18127435,110330.0,110320.0,0.42933678]
[1756800717388,0.91738273,110340.0,110320.0,0.42933678]
[1756800717747,0.18127435,110330.0,110320.0,0.42933678]
[1756800718870,0.53688526,110330.0,110320.0,0.42933678]
[1756800719165,0.54207526,110330.0,110320.0,0.24804599]
[1756800719526,0.54207526,110330.0,110320.0,0.43033678]
[1756800720373,0.54207526,110330.0,110320.0,0.42920678]
[1756800720580,0.54207526,110330.0,110320.0,0.24791599]
[1756800720922,0.36080091,110330.0,110320.0,0.24791599]
[1756800721124,0.54207526,110330.0,110320.0,0.24791599]
[1756800721562,0.54207526,110330.0,110320.0,0.24691599]
[1756800721768,0.54207526,110330.0,110320.0,0.24591599]
[1756800722892,0.69603526,110330.0,110320.0,0.09191599]
[1756800723154,0.18130722,110310.0,110300.0,0.36252858]
[1756800723361,0.54210813,110310.0,110300.0,0.24587599]
[1756800723583,0.54210813,110310.0,110300.0,0.42719965]
[1756800723798,0.54210813,110310.0,110300.0,0.09191599]
[1756800724066,0.54210813,110310.0,110290.0,0.02772412]
[1756800724067,0.18132366,110300.0,110290.0,0.02772412]
[1756800724268,0.54013457,110300.0,110290.0,0.27360011]
[1756800724471,0.54013457,110300.0,110290.0,0.24634611]
[1756800724677,0.54212457,110300.0,110290.0,0.24634611]
[1756800725524,0.54212457,110300.0,110290.0,0.24834611]
[1756800725732,0.54212457,110300.0,110290.0,0.25134611]
[1756800726302,0.98860644,110300.0,110290.0,0.00547012]
[1756800726524,0.92499448,110300.0,110290.0,0.00547012]
[1756800726728,0.21377266,110300.0,110290.0,0.00547012]
[1756800726925,0.92499448,110300.0,110290.0,0.00547012]
[1756800727293,0.92499448,110300.0,110290.0,0.00347012]
[1756800727514,0.92499448,110300.0,110290.0,0.00447012]
[1756800727716,0.89773548,110300.0,110290.0,0.00447012]
[1756800727921,0.18651366,110300.0,110290.0,0.00447012]
[1756800728094,1.05169548,110300.0,110290.0,0.00047012]
[1756800728516,1.05169548,110300.0,110290.0,0.00147012]
[1756800729081,0.34047366,110300.0,110290.0,0.00147012]
[1756800729302,1.05169548,110300.0,110290.0,0.00047012]
[1756800730146,0.89773548,110300.0,110290.0,0.00047012]
[1756800730353,1.05169548,110300.0,110290.0,0.00047012]
[1756800734802,1.53054023,110300.0,110290.0,0.00047012]
[1756800735014,1.08301333,110300.0,110290.0,0.00047012]
[1756800735223,0.92905333,110300.0,110290.0,0.00047012]
[1756800735509,1.11027433,110300.0,110290.0,0.00047012]
[1756800736360,0.95631433,110300.0,110290.0,0.00047012]
[1756800736560,1.11027433,110300.0,110290.0,0.00047012]
[1756800736891,0.39905251,110300.0,110290.0,0.00047012]
[1756800737088,1.11027433,110300.0,110290.0,0.00047012]
[1756800739015,1.83575722,110300.0,110290.0,0.00047012]
[1756800739198,2.0091776,110300.0,110290.0,0.00047012]
[1756800739466,2.00917239,110300.0,110290.0,0.00047012]
[1756800739845,1.49964148,110300.0,110290.0,0.00047012]
[1756800740053,1.65356148,110300.0,110290.0,0.00047012]
[1756800740259,1.42857552,110300.0,110290.0,0.00047012]
[1756800740440,1.60456846,110300.0,110290.0,0.00047012]
[1756800740985,1.96017937,110300.0,110290.0,0.00047012]
[1756800741164,1.60456846,110300.0,110290.0,0.00047012]
[1756800741607,1.26681648,110300.0,110290.0,0.00047012]
[1756800741805,0.70951466,110300.0,110290.0,0.00256012]
[1756800742033,1.26681648,110300.0,110290.0,0.00256012]
[1756800742354,0.70750466,110300.0,110290.0,0.00552012]
[1756800742561,0.90919557,110300.0,110290.0,0.00552012]
[1756800742666,1.06311557,110300.0,110290.0,0.00552012]
[1756800742873,1.06111557,110300.0,110290.0,0.00552012]
[1756800743081,1.41672648,110300.0,110290.0,0.00552012]
[1756800743306,1.41872648,110300.0,110290.0,0.00552012]
[1756800743504,1.41572648,110300.0,110290.0,0.00552012]
[1756800743711,1.41372648,110300.0,110290.0,0.00552012]
[1756800743916,1.25980648,110300.0,110290.0,0.00552012]
[1756800744121,1.41472648,110300.0,110290.0,0.00552012]
[1756800744317,1.26281648,110300.0,110290.0,0.00552012]
[1756800744523,1.41472648,110300.0,110290.0,0.00552012]
[1756800744813,1.41572648,110300.0,110290.0,0.00552012]
[1756800745225,1.41773648,110300.0,110290.0,0.00552012]
[1756800745895,1.41572648,110300.0,110290.0,0.00552012]
[1756800746308,1.41773648,110300.0,110290.0,0.00552012]
[1756800746812,1.41773648,110300.0,110290.0,0.00256012]
[1756800749281,0.90619557,110300.0,110290.0,0.00552012]
[1756800749495,0.90619557,110300.0,110290.0,0.18686022]
[1756800749703,1.03285457,110300.0,110290.0,0.00552012]
[1756800750102,1.03185457,110300.0,110290.0,0.00552012]
[1756800750323,1.03185457,110300.0,110290.0,0.18686022]
[1756800750535,1.03185457,110300.0,110290.0,0.00552012]
[1756800751135,1.03085457,110300.0,110290.0,0.00552012]
[1756800751334,1.03286457,110300.0,110290.0,0.00552012]
[1756800751755,1.38847548,110300.0,110290.0,0.00552012]
[1756800752715,1.03286457,110300.0,110290.0,0.00552012]
[1756800753282,0.67725366,110300.0,110290.0,0.00552012]
[1756800753457,1.03286457,110300.0,110290.0,0.00552012]
[1756800756526,0.87894457,110300.0,110290.0,0.00552012]
[1756800756770,1.03081457,110300.0,110290.0,0.18686022]
[1756800756971,1.03081457,110300.0,110290.0,0.00552012]
[1756800757091,1.03293457,110300.0,110290.0,0.00552012]
[1756800758782,0.52132366,110300.0,110290.0,0.18686022]
[1756800758992,0.56417713,110310.0,110290.0,0.43492296]
[1756800759123,1.07760471,110310.0,110300.0,0.00319]
[1756800759335,1.07760471,110310.0,110300.0,0.00525]
[1756800759536,1.07972471,110310.0,110300.0,0.00525]
[1756800759946,1.07760471,110310.0,110300.0,0.18657366]
[1756800760146,1.05805713,110310.0,110300.0,0.18657366]
[1756800760369,1.05905713,110310.0,110300.0,0.00525]
[1756800760662,1.03391813,110310.0,110300.0,0.00525]
[1756800760858,1.03287813,110310.0,110300.0,0.00525]
[1756800761059,1.03387813,110310.0,110300.0,0.18657366]
[1756800761259,1.03175813,110310.0,110300.0,0.18657366]
[1756800761824,1.03275813,110310.0,110300.0,0.18657366]
[1756800762268,0.87891813,110310.0,110300.0,0.27848965]
[1756800764281,0.88103813,110310.0,110300.0,0.09716599]
[1756800764486,1.03487813,110310.0,110300.0,0.09191599]
[1756800764686,1.03804813,110310.0,110300.0,0.09191599]
[1756800767037,0.88420813,110310.0,110300.0,0.09191599]
[1756800767213,1.03804813,110310.0,110300.0,0.09191599]
[1756800767356,1.03487813,110310.0,110300.0,0.09191599]
[1756800767765,1.03487813,110310.0,110300.0,0.09397599]
[1756800768975,1.03487813,110310.0,110300.0,0.09191599]
[1756800769153,1.03804813,110310.0,110300.0,0.09191599]
[1756800769631,1.03816288,110310.0,110300.0,0.09191599]
[1756800769836,1.03499288,110310.0,110300.0,0.09191599]
[1756800770158,1.03816288,110310.0,110300.0,0.09191599]
[1756800771998,1.03499288,110310.0,110300.0,0.09191599]
[1756800773459,1.03816288,110310.0,110300.0,0.09191599]
[1756800781681,1.03499288,110310.0,110300.0,0.09397599]
[1756800781889,1.03499288,110310.0,110300.0,0.09716599]
[1756800781890,0.88115288,110310.0,110300.0,0.09716599]
[1756800783031,0.88115288,110310.0,110300.0,0.09397599]
[1756800783785,1.03491288,110310.0,110300.0,0.09397599]
[1756800784185,0.67918722,110310.0,110300.0,0.09716599]
[1756800784339,1.03491288,110310.0,110300.0,0.09943253]
[1756800784791,1.03491288,110310.0,110300.0,0.28075619]
[1756800784982,1.03491288,110310.0,110290.0,0.15372]
[1756800785186,0.87903288,110310.0,110300.0,0.18338366]
[1756800785422,0.002,110310.0,110300.0,0.63102531]
[1756800785832,0.001,110310.0,110300.0,0.63102531]
[1756800786030,0.001,110310.0,110300.0,0.27529965]
[1756800786242,0.002,110310.0,110300.0,0.27529965]
[1756800786689,0.001,110310.0,110300.0,0.27529965]
[1756800786974,0.001,110310.0,110300.0,0.27629965]
[1756800787196,0.001,110310.0,110300.0,0.27903965]
[1756800787400,0.18440114,110320.0,110310.0,0.18130722]
[1756800787544,0.18655114,110320.0,110310.0,0.18562356]
[1756800787956,0.18655114,110320.0,110310.0,0.00431634]
[1756800788178,0.18655114,110320.0,110310.0,0.18562356]
[1756800789654,0.18655114,110320.0,110310.0,0.33934356]
[1756800789859,0.18655114,110320.0,110310.0,0.33707722]
[1756800790064,0.5422768,110320.0,110310.0,0.33707722]
[1756800790937,0.00526,110320.0,110310.0,0.42899321]
[1756800791124,0.73010772,110330.0,110310.0,0.42899321]
[1756800791279,0.18129079,110320.0,110310.0,0.42899321]
[1756800792176,0.18129079,110320.0,110310.0,0.27527321]
[1756800792421,0.18655079,110320.0,110310.0,0.27322321]
[1756800793044,0.54227645,110320.0,110310.0,0.09191599]
[1756800793761,0.54227645,110320.0,110310.0,0.27322321]
[1756800793988,0.54227645,110320.0,110310.0,0.09191599]
[1756800794188,0.54227645,110320.0,110300.0,0.19038984]
[1756800794394,0.54014288,110310.0,110300.0,0.42691448]
[1756800794590,0.54229288,110310.0,110300.0,0.24559599]
[1756800794928,0.54229288,110310.0,110270.0,0.3350521]
[1756800794929,0.18135654,110280.0,110270.0,0.3350521]
[1756800795133,0.5423422,110280.0,110270.0,0.42914616]
[1756800795332,0.00526,110280.0,110270.0,0.42914616]
[1756800795539,0.54017576,110290.0,110270.0,0.42914616]
[1756800795732,0.18135654,110280.0,110270.0,0.42914616]
[1756800796336,0.18135654,110280.0,110270.0,0.43114616]
[1756800797235,0.54017576,110290.0,110270.0,0.43414616]
[1756800797438,0.18135654,110280.0,110270.0,0.43414616]
[1756800797934,0.18135654,110280.0,110270.0,0.43414705]
[1756800798103,0.5423422,110280.0,110270.0,0.24868406]
[1756800798306,0.5423422,110280.0,110270.0,0.43005705]
[1756800798599,0.5423422,110280.0,110270.0,0.43105705]
[1756800798786,0.5423422,110280.0,110270.0,0.09604406]
[1756800799026,0.5423422,110280.0,110270.0,0.15676807]
[1756800799325,0.5423422,110280.0,110270.0,0.15776807]
[1756800799663,0.5423422,110280.0,110270.0,0.15476807]
[1756800799892,0.5423422,110280.0,110270.0,0.15376807]
[1756800800108,0.5423422,110280.0,110270.0,0.15576807]
[1756800802099,0.59447543,110280.0,110270.0,0.00212807]
[1756800802321,0.5423422,110280.0,110270.0,0.15576807]
[1756800803332,0.5423422,110280.0,110270.0,0.15476807]
[1756800803494,0.5423422,110280.0,110270.0,0.15376807]
[1756800804114,0.6959822,110280.0,110270.0,0.00012807]
[1756800804332,0.78644073,110280.0,110270.0,0.00012807]
[1756800805592,0.81370573,110280.0,110270.0,0.00012807]
[1756800806563,0.66006573,110280.0,110270.0,0.00012807]
[1756800806767,0.7232472,110280.0,110270.0,0.00012807]
[1756800807131,0.5696072,110280.0,110270.0,0.00012807]
[1756800807336,0.7232472,110280.0,110270.0,0.00012807]
[1756800809503,1.15516319,110280.0,110270.0,0.00012807]
[1756800809714,1.57927961,110280.0,110270.0,0.00012807]
[1756800809921,1.31675918,110280.0,110270.0,0.00012807]
[1756800810531,1.16315918,110280.0,110270.0,0.00012807]
[1756800810737,1.31675918,110280.0,110270.0,0.00012807]
[1756800811142,1.16315918,110280.0,110270.0,0.00012807]
[1756800811374,1.31875918,110280.0,110270.0,0.00012807]
[1756800811578,1.16515918,110280.0,110270.0,0.00012807]
[1756800812003,1.31875918,110280.0,110270.0,0.00012807]
[1756800814459,1.16515918,110280.0,110270.0,0.00012807]
[1756800814677,1.52088484,110280.0,110270.0,0.00012807]
[1756800814879,1.7038046,110280.0,110270.0,0.00012807]
[1756800815539,1.52088484,110280.0,110270.0,0.00012807]
[1756800815742,1.1349272,110280.0,110270.0,0.00012807]
[1756800816621,1.08788706,110280.0,110270.0,0.00012807]